[Event "12th National Amateur Chess-ch 2025"]
[Site "Bihar"]
[Date "2025.03.26"]
[Round "3.1"]
[White "Anadkat Kartavya"]
[Black "Amartya Saumitra Gupta"]
[Result "1-0"]
[Annotator "NA"]
[ECO "B96"]
[WhiteElo "2175"]
[BlackElo "1884"]
[PlyCount "61"]
[EventDate "2025.03.25"]
[EventCountry "IND"]
[SourceTitle "playchess.com"]
[Source "ChessBase"]
[SourceQuality "1"]
[TimeControl "5400+30"]

1. e4 {[%emt 0:06:11]} c5 {[%emt 0:00:18]} 2. Nf3 {[%emt 0:00:00]} d6 {[%emt 0:00:06]} 3. d4 {[%emt 0:00:00]} cxd4 {[%emt 0:00:05]} 4. Nxd4 {[%emt 0:00:00]} Nf6 {[%emt 0:00:11]} 5. Nc3 {[%emt 0:00:00]} a6 {[%emt 0:00:07]} 6. Bg5 {[%emt 0:00:00]} e6 {[%emt 0:00:07]} 7. f4 {[%emt 0:00:00]} h6 {[%emt 0:00:06]} 8. Bh4 Qb6 {[%emt 0:00:05]} 9. a3 {[%emt 0:00:00]} Be7 {[%emt 0:00:16]} 10. Bf2 {[%emt 0:00:00]} Qc7 {[%emt 0:00:11]} 11. Qf3 {[%emt 0:00:00]} b5 {[%emt 0:00:27]} 12. O-O-O {[%emt 0:00:00]} Bb7 {[%emt 0:00:02]} 13. g4 {[%emt 0:00:00]} Nbd7 {[%emt 0:00:14]} 14. h4 {[%emt 0:00:00]} Nc5 {[%emt 0:00:04]} 15. Bd3 {[%emt 0:00:00]} d5 {[%emt 0:00:06]} 16. e5 {[%emt 0:00:00]} Nfe4 {[%emt 0:00:06]} 17. Bxe4 {[%emt 0:00:00]} Nxe4 {[%emt 0:00:06]} 18. Be1 {[%emt 0:00:00]} Rc8 {[%emt 0:09:36]} 19. Kb1 {[%emt 0:02:23]} Nxc3+ {[%emt 0:13:36]} 20. Bxc3 {[%emt 0:00:32]} Bxa3 {[%emt 0:02:35]} 21. bxa3 {[%emt 0:00:05]} Qxc3 {[%emt 0:00:13]} 22. Rd3 {[%emt 0:00:01]} Qa5 {[%emt 0:03:19]} 23. f5 {[%emt 0:03:56]} Qb6 {[%emt 0:04:58]} 24. Rf1 {[%emt 0:27:08]} Rc7 {[%emt 0:07:47]} 25. Qf2 {[%emt 0:11:21]} O-O {[%emt 0:07:04]} 26. fxe6 {[%emt 0:04:28]} Bc8 {[%emt 0:03:45]} 27. g5 {[%emt 0:07:44]} h5 {[%emt 0:02:02]} 28. e7 {[%emt 0:14:40]} Rxe7 {[%emt 0:03:31]} 29. Nf5 {[%emt 0:00:40]} Bxf5 {[%emt 0:00:07]} 30. Qd4 {[%emt 0:00:05]} Qc5 31. Qxc5 {[%emt 0:00:32]} 1-0

[Event "12th National Amateur Chess-ch 2025"]
[Site "Bihar"]
[Date "2025.03.26"]
[Round "3.2"]
[White "Reyan"]
[Black "Pratiyush Kumar"]
[Result "0-1"]
[Annotator "NA RC"]
[ECO "B23"]
[WhiteElo "2005"]
[BlackElo "1817"]
[PlyCount "72"]
[EventDate "2025.03.25"]
[EventCountry "IND"]
[SourceTitle "playchess.com"]
[Source "ChessBase"]
[SourceQuality "1"]
[TimeControl "5400+30"]

1. e4 {[%emt 0:00:16]} c5 {[%emt 0:00:20]} 2. Nc3 {[%emt 0:00:16]} Nc6 {[%emt 0:00:08]} 3. Bb5 {[%emt 0:00:05]} Nd4 {[%emt 0:00:09]} 4. Nf3 {[%emt 0:00:05]} Nxb5 {[%emt 0:00:38]} 5. Nxb5 {[%emt 0:00:07]} d6 {[%emt 0:00:12]} 6. d4 {[%emt 0:01:30]} a6 {[%emt 0:04:26]} 7. Nc3 {[%emt 0:00:40]} cxd4 {[%emt 0:01:22]} 8. Qxd4 {[%emt 0:00:34]} e5 {[%emt 0:08:06]} 9. Qd3 {[%emt 0:01:49]} h6 10. Be3 {[%emt 0:25:14]} Nf6 {[%emt 0:07:34]} 11. h3 {[%emt 0:01:25]} Be7 {[%emt 0:03:10]} 12. O-O-O {[%emt 0:04:04]} Be6 {[%emt 0:04:35]} 13. g4 {[%emt 0:07:28]} b5 {[%emt 0:11:23]} 14. g5 {[%emt 0:07:58]} hxg5 {[%emt 0:06:35]} 15. Nxg5 {[%emt 0:08:14]} Bc4 {[%emt 0:01:33]} 16. Qd2 {[%emt 0:00:35]} Qa5 {[%emt 0:02:40]} 17. a3 {[%emt 0:12:24]} b4 {[%emt 0:16:55]} 18. Nb1 {[%emt 0:01:49]} d5 {[%emt 0:09:29]} 19. Qe1 {[%emt 0:11:25]} Rc8 {[%emt 0:11:02]} 20. axb4 {[%emt 0:06:59]} Bxb4 {[%emt 0:00:14]} 21. Bd2 {[%emt 0:00:59]} Bb3 {[%emt 0:04:55]} 22. Bc3 {[%emt 0:01:37]} Bxc3 {[%emt 0:02:09]} 23. bxc3 {[%emt 0:00:25]} Ba2 {[%emt 0:01:09]} 24. exd5 {[%emt 0:01:53]} O-O {[%emt 0:00:33]} 25. c4 {[%emt 0:01:34]} Qa4 {[%emt 0:01:03]} 26. Nc3 {[%emt 0:01:47]} Qa3+ {[%emt 0:00:57]} 27. Kd2 {[%emt 0:00:00]} Rxc4 {[%emt 0:00:40]} 28. Qe3 {[%emt 0:02:16]} Rfc8 {[%emt 0:00:27]} 29. Nxa2 {[%emt 0:00:49]} Qxa2 {[%emt 0:00:21]} 30. Ke1 {[%emt 0:00:34]} Rc3 {[%emt 0:01:12]} 31. Qa7 {[%emt 0:00:26]} Rxc2 {[%emt 0:01:09]} 32. Qxf7+ {[%emt 0:00:36]} Kh8 {[%emt 0:00:01]} 33. Rh2 {[%emt 0:00:01]} Qc4 {[%emt 0:00:21]} 34. Rd2 {[%emt 0:01:04]} Rc1+ {[%emt 0:00:09]} 35. Rd1 {[%emt 0:00:01]} Rxd1+ {[%emt 0:00:06]} 36. Kxd1 {[%emt 0:00:06]} Qd3+ {[%emt 0:00:02]} 0-1

[Event "12th National Amateur Chess-ch 2025"]
[Site "Bihar"]
[Date "2025.03.26"]
[Round "3.3"]
[White "Ayaan Garg"]
[Black "Shreyas"]
[Result "1-0"]
[Annotator "NA RC"]
[ECO "D58"]
[WhiteElo "1983"]
[BlackElo "1798"]
[PlyCount "81"]
[EventDate "2025.03.25"]
[EventCountry "IND"]
[SourceTitle "playchess.com"]
[Source "ChessBase"]
[SourceQuality "1"]
[TimeControl "5400+30"]

1. d4 {[%emt 0:00:30]} Nf6 {[%emt 0:01:28]} 2. c4 {[%emt 0:00:05]} e6 {[%emt 0:00:13]} 3. Nc3 {[%emt 0:00:04]} d5 {[%emt 0:02:05]} 4. Nf3 {[%emt 0:00:04]} Be7 {[%emt 0:03:41]} 5. Bg5 {[%emt 0:00:06]} h6 {[%emt 0:00:49]} 6. Bh4 {[%emt 0:00:05]} O-O {[%emt 0:01:08]} 7. e3 {[%emt 0:00:12]} b6 {[%emt 0:01:19]} 8. Bxf6 {[%emt 0:04:41]} Bxf6 {[%emt 0:01:55]} 9. cxd5 {[%emt 0:00:02]} exd5 {[%emt 0:00:59]} 10. Qb3 {[%emt 0:00:02]} Be6 {[%emt 0:03:29]} 11. Rd1 c6 {[%emt 0:03:40]} 12. Bd3 {[%emt 0:00:34]} Re8 {[%emt 0:04:41]} 13. O-O {[%emt 0:00:07]} g6 {[%emt 0:10:01]} 14. Qc2 {[%emt 0:01:30]} Bg7 {[%emt 0:01:11]} 15. h3 {[%emt 0:04:22]} Qd6 {[%emt 0:09:05]} 16. e4 {[%emt 0:09:00]} dxe4 {[%emt 0:07:47]} 17. Bxe4 {[%emt 0:01:24]} Bd5 {[%emt 0:09:56]} 18. Bxd5 {[%emt 0:00:47]} cxd5 {[%emt 0:00:02]} 19. Rc1 {[%emt 0:03:09]} a6 {[%emt 0:08:48]} 20. Qb3 {[%emt 0:01:44]} Rd8 {[%emt 0:01:40]} 21. Rfe1 {[%emt 0:01:13]} b5 {[%emt 0:03:36]} 22. Ne5 {[%emt 0:06:18]} Ra7 {[%emt 0:09:44]} 23. a4 {[%emt 0:03:36]} b4 {[%emt 0:00:38]} 24. Na2 {[%emt 0:14:37]} a5 {[%emt 0:00:37]} 25. f4 {[%emt 0:01:38]} Rc7 {[%emt 0:01:26]} 26. Rxc7 {[%emt 0:00:33]} Qxc7 {[%emt 0:00:03]} 27. Rc1 {[%emt 0:00:06]} Qb6 {[%emt 0:00:19]} 28. Rc5 {[%emt 0:01:25]} Bxe5 {[%emt 0:01:13]} 29. fxe5 {[%emt 0:00:22]} Nc6 {[%emt 0:02:12]} 30. Qe3 {[%emt 0:01:46]} h5 {[%emt 0:08:06]} 31. Nc1 {[%emt 0:01:09]} Ne7 {[%emt 0:00:46]} 32. Nb3 {[%emt 0:01:43]} Ra8 {[%emt 0:01:37]} 33. Qf3 {[%emt 0:04:09]} Nf5 {[%emt 0:01:20]} 34. Qxd5 {[%emt 0:06:17]} Rd8 {[%emt 0:00:09]} 35. Qc4 {[%emt 0:00:16]} Qb7 {[%emt 0:00:13]} 36. Rc7 {[%emt 0:02:02]} Qd5 {[%emt 0:00:52]} 37. Qxd5 {[%emt 0:00:22]} Rxd5 {[%emt 0:00:02]} 38. Rc5 {[%emt 0:00:13]} Rd7 {[%emt 0:00:00]} 39. d5 {[%emt 0:00:45]} Re7 {[%emt 0:00:01]} 40. d6 {[%emt 0:00:07]} Rd7 {[%emt 0:00:51]} 41. Nxa5 {[%emt 0:02:08]} 1-0

[Event "12th National Amateur Chess-ch 2025"]
[Site "Bihar"]
[Date "2025.03.26"]
[Round "3.4"]
[White "Vidit Sethi"]
[Black "Vatsal Singla"]
[Result "1-0"]
[Annotator "NA RC"]
[ECO "D30"]
[WhiteElo "1832"]
[BlackElo "1917"]
[PlyCount "69"]
[EventDate "2025.03.25"]
[EventCountry "IND"]
[SourceTitle "playchess.com"]
[Source "ChessBase"]
[SourceQuality "1"]
[TimeControl "5400+30"]

1. d4 {[%emt 0:00:03]} d5 {[%emt 0:00:22]} 2. c4 {[%emt 0:00:04]} e6 {[%emt 0:00:03]} 3. g3 {[%emt 0:00:06]} dxc4 {[%emt 0:00:05]} 4. Bg2 {[%emt 0:00:10]} c6 {[%emt 0:00:31]} 5. Nf3 {[%emt 0:00:32]} b5 {[%emt 0:02:08]} 6. a4 {[%emt 0:00:53]} Bb7 {[%emt 0:00:06]} 7. O-O {[%emt 0:00:50]} Nd7 {[%emt 0:00:05]} 8. b3 {[%emt 0:01:14]} cxb3 {[%emt 0:00:20]} 9. Nbd2 {[%emt 0:00:06]} b4 {[%emt 0:07:25]} 10. Qxb3 {[%emt 0:05:50]} a5 {[%emt 0:00:02]} 11. Ne5 {[%emt 0:06:39]} Nxe5 {[%emt 0:08:56]} 12. dxe5 {[%emt 0:00:06]} Ne7 {[%emt 0:00:34]} 13. Nc4 {[%emt 0:00:22]} Nc8 {[%emt 0:01:15]} 14. Rd1 {[%emt 0:03:57]} Qc7 {[%emt 0:01:19]} 15. Bb2 {[%emt 0:00:22]} Be7 {[%emt 0:05:35]} 16. Nd6+ {[%emt 0:00:56]} Nxd6 {[%emt 0:00:09]} 17. exd6 {[%emt 0:00:04]} Bxd6 {[%emt 0:00:05]} 18. Bxg7 {[%emt 0:00:06]} Rg8 {[%emt 0:00:08]} 19. Bf6 {[%emt 0:00:18]} Rg6 {[%emt 0:06:03]} 20. Bh4 {[%emt 0:00:46]} Rc8 {[%emt 0:12:12]} 21. Be4 {[%emt 0:06:28]} f5 {[%emt 0:00:31]} 22. Bf3 {[%emt 0:00:10]} Be5 {[%emt 0:10:44]} 23. Bh5 {[%emt 0:02:17]} Kf7 {[%emt 0:00:19]} 24. Ra2 {[%emt 0:00:40]} Bc3 {[%emt 0:00:44]} 25. Rc2 {[%emt 0:03:17]} c5 {[%emt 0:10:19]} 26. Bxg6+ {[%emt 0:01:20]} hxg6 {[%emt 0:00:46]} 27. Rxc3 {[%emt 0:00:06]} bxc3 {[%emt 0:00:05]} 28. Qxc3 {[%emt 0:00:06]} e5 {[%emt 0:00:06]} 29. Qc4+ {[%emt 0:00:06]} Kg7 {[%emt 0:01:20]} 30. Qe6 {[%emt 0:00:21]} Qc6 {[%emt 0:02:19]} 31. Rd7+ {[%emt 0:02:21]} Kh6 {[%emt 0:00:02]} 32. Bg5+ {[%emt 0:00:13]} Kh5 {[%emt 0:00:35]} 33. Rh7+ {[%emt 0:00:10]} Kg4 {[%emt 0:00:04]} 34. h3+ {[%emt 0:00:31]} Kxg5 {[%emt 0:00:05]} 35. Qe7+ {[%emt 0:00:11]} 1-0

[Event "12th National Amateur Chess-ch 2025"]
[Site "Bihar"]
[Date "2025.03.26"]
[Round "3.5"]
[White "Shelke Omkar"]
[Black "Gurung Rohit"]
[Result "0-1"]
[Annotator "NA RC"]
[ECO "A54"]
[WhiteElo "1819"]
[BlackElo "1902"]
[PlyCount "78"]
[EventDate "2025.03.25"]
[EventCountry "IND"]
[SourceTitle "playchess.com"]
[Source "ChessBase"]
[SourceQuality "1"]
[TimeControl "5400+30"]

1. Nf3 {[%emt 0:00:04]} d6 {[%emt 0:00:29]} 2. c4 {[%emt 0:03:38]} e5 {[%emt 0:00:33]} 3. Nc3 {[%emt 0:00:14]} Nf6 {[%emt 0:00:45]} 4. d4 {[%emt 0:00:17]} e4 {[%emt 0:02:54]} 5. Ng5 {[%emt 0:07:32]} Qe7 {[%emt 0:02:27]} 6. Qc2 {[%emt 0:01:41]} Nc6 {[%emt 0:11:36]} 7. Nd5 {[%emt 0:28:55]} Nxd4 {[%emt 0:13:56]} 8. Qa4+ {[%emt 0:02:35]} b5 {[%emt 0:03:36]} 9. cxb5 {[%emt 0:12:05]} Nxd5 {[%emt 0:01:29]} 10. Qxd4 {[%emt 0:00:02]} Nf6 {[%emt 0:00:43]} 11. g3 {[%emt 0:01:17]} h6 {[%emt 0:04:14]} 12. Nh3 {[%emt 0:01:15]} g5 {[%emt 0:01:55]} 13. Bg2 {[%emt 0:05:03]} Bg7 {[%emt 0:00:38]} 14. Bd2 {[%emt 0:01:36]} O-O {[%emt 0:00:45]} 15. O-O {[%emt 0:00:52]} a6 {[%emt 0:03:54]} 16. bxa6 {[%emt 0:06:26]} Bxa6 {[%emt 0:00:18]} 17. Bc3 {[%emt 0:02:29]} c5 {[%emt 0:00:40]} 18. Qd2 {[%emt 0:01:17]} Rfd8 {[%emt 0:02:43]} 19. b4 {[%emt 0:04:08]} cxb4 {[%emt 0:05:48]} 20. Bxb4 {[%emt 0:00:27]} Qe6 {[%emt 0:00:39]} 21. Rfd1 {[%emt 0:04:32]} Ng4 {[%emt 0:06:14]} 22. Rac1 {[%emt 0:01:33]} d5 {[%emt 0:03:29]} 23. f4 {[%emt 0:08:55]} exf3 {[%emt 0:09:10]} 24. exf3 {[%emt 0:00:39]} Qe3+ {[%emt 0:01:02]} 25. Kh1 {[%emt 0:00:33]} Qxd2 {[%emt 0:00:08]} 26. Bxd2 {[%emt 0:00:01]} Ne5 {[%emt 0:02:35]} 27. Nf2 {[%emt 0:04:20]} Bc4 {[%emt 0:00:50]} 28. f4 {[%emt 0:00:13]} gxf4 {[%emt 0:00:38]} 29. gxf4 {[%emt 0:00:27]} Ng6 {[%emt 0:00:27]} 30. Rxc4 {[%emt 0:01:18]} dxc4 {[%emt 0:00:30]} 31. Bxa8 {[%emt 0:00:04]} Rxa8 {[%emt 0:00:11]} 32. f5 {[%emt 0:01:20]} Nh4 {[%emt 0:01:02]} 33. f6 {[%emt 0:00:27]} Bxf6 {[%emt 0:00:40]} 34. Ne4 {[%emt 0:00:43]} Be5 {[%emt 0:01:15]} 35. Bxh6 {[%emt 0:00:27]} Rxa2 {[%emt 0:00:33]} 36. Ng5 {[%emt 0:00:20]} Bd4 {[%emt 0:05:26]} 37. h3 {[%emt 0:00:43]} f6 {[%emt 0:00:39]} 38. Rxd4 {[%emt 0:00:29]} fxg5 {[%emt 0:00:12]} 39. Rxc4 {[%emt 0:00:29]} Nf3 {[%emt 0:00:10]} 0-1

[Event "12th National Amateur Chess-ch 2025"]
[Site "Bihar"]
[Date "2025.03.26"]
[Round "3.6"]
[White "Salil, Kumar D."]
[Black "Anchal, Rastogi"]
[Result "1-0"]
[Annotator "NA RC"]
[ECO "B22"]
[WhiteElo "1777"]
[BlackElo "1832"]
[PlyCount "65"]
[EventDate "2025.03.25"]
[EventCountry "IND"]
[SourceTitle "playchess.com"]
[Source "ChessBase"]
[SourceQuality "1"]
[TimeControl "5400+30"]

1. e4 {[%emt 0:02:44]} c5 {[%emt 0:00:57]} 2. Nf3 {[%emt 0:00:06]} e6 {[%emt 0:00:22]} 3. c3 {[%emt 0:00:10]} Nf6 {[%emt 0:00:13]} 4. e5 {[%emt 0:00:23]} Nd5 {[%emt 0:00:07]} 5. d4 {[%emt 0:00:22]} d6 {[%emt 0:01:05]} 6. Bd3 {[%emt 0:07:17]} Nc6 {[%emt 0:00:28]} 7. O-O {[%emt 0:00:36]} cxd4 {[%emt 0:04:46]} 8. cxd4 {[%emt 0:00:17]} dxe5 {[%emt 0:00:16]} 9. Nxe5 {[%emt 0:02:40]} Nxe5 {[%emt 0:00:42]} 10. dxe5 {[%emt 0:00:07]} Bd7 11. Be4 {[%emt 0:06:36]} Bc6 {[%emt 0:01:37]} 12. Nc3 {[%emt 0:02:16]} Nxc3 {[%emt 0:07:58]} 13. Bxc6+ {[%emt 0:00:07]} bxc6 {[%emt 0:00:11]} 14. bxc3 {[%emt 0:00:53]} Qxd1 {[%emt 0:12:34]} 15. Rxd1 {[%emt 0:00:05]} Bc5 {[%emt 0:00:06]} 16. Rb1 {[%emt 0:04:17]} Bb6 {[%emt 0:06:01]} 17. Be3 {[%emt 0:07:47]} c5 {[%emt 0:16:00]} 18. Rb5 {[%emt 0:04:43]} Ke7 {[%emt 0:05:46]} 19. Bxc5+ {[%emt 0:07:07]} Bxc5 {[%emt 0:00:16]} 20. Rxc5 {[%emt 0:00:02]} Rhc8 {[%emt 0:00:02]} 21. Rxc8 {[%emt 0:05:47]} Rxc8 {[%emt 0:03:59]} 22. Rd3 {[%emt 0:00:11]} Rc4 {[%emt 0:00:29]} 23. g3 {[%emt 0:01:36]} g5 {[%emt 0:00:22]} 24. Kf1 {[%emt 0:03:08]} Re4 {[%emt 0:02:12]} 25. Re3 {[%emt 0:02:03]} Ra4 {[%emt 0:00:03]} 26. Re2 {[%emt 0:00:53]} Kd7 {[%emt 0:00:05]} 27. Ke1 {[%emt 0:04:13]} Kc6 {[%emt 0:01:06]} 28. Kd1 {[%emt 0:02:05]} Ra3 {[%emt 0:00:18]} 29. Rc2 {[%emt 0:01:29]} Kd5 {[%emt 0:00:33]} 30. Kc1 {[%emt 0:05:36]} Kxe5 {[%emt 0:02:21]} 31. Kb2 {[%emt 0:03:47]} Ra6 {[%emt 0:00:07]} 32. Rd2 {[%emt 0:01:07]} g4 {[%emt 0:05:09]} 33. Rd7 {[%emt 0:00:09]} 1-0

[Event "12th National Amateur Chess-ch 2025"]
[Site "Bihar"]
[Date "2025.03.26"]
[Round "3.7"]
[White "Aman Balana"]
[Black "Shitiz Prasad"]
[Result "1-0"]
[Annotator "NA RC"]
[ECO "C54"]
[WhiteElo "1827"]
[BlackElo "1798"]
[PlyCount "65"]
[EventDate "2025.03.25"]
[EventCountry "IND"]
[SourceTitle "playchess.com"]
[Source "ChessBase"]
[SourceQuality "1"]
[TimeControl "5400+30"]

1. e4 {[%emt 0:00:04]} e5 {[%emt 0:00:30]} 2. Nf3 {[%emt 0:00:10]} Nc6 {[%emt 0:00:02]} 3. Bc4 {[%emt 0:00:02]} Bc5 {[%emt 0:00:16]} 4. O-O {[%emt 0:00:28]} Nf6 {[%emt 0:00:04]} 5. d3 {[%emt 0:00:31]} O-O {[%emt 0:00:27]} 6. c3 {[%emt 0:00:28]} d5 {[%emt 0:02:10]} 7. exd5 {[%emt 0:03:04]} Nxd5 {[%emt 0:00:05]} 8. Re1 {[%emt 0:03:17]} Be6 9. b4 {[%emt 0:09:25]} Bd6 {[%emt 0:15:51]} 10. Bg5 {[%emt 0:07:08]} f6 {[%emt 0:01:44]} 11. Bh4 {[%emt 0:10:07]} g5 {[%emt 0:00:43]} 12. Qb3 {[%emt 0:02:19]} Nce7 {[%emt 0:01:22]} 13. Bg3 {[%emt 0:04:36]} Bf7 {[%emt 0:01:20]} 14. a4 {[%emt 0:07:56]} c6 {[%emt 0:01:17]} 15. a5 {[%emt 0:09:21]} a6 {[%emt 0:05:00]} 16. Nbd2 {[%emt 0:01:27]} Kg7 {[%emt 0:02:24]} 17. Ne4 {[%emt 0:03:07]} Nf5 {[%emt 0:03:29]} 18. Nxd6 {[%emt 0:10:27]} Nxd6 {[%emt 0:00:40]} 19. Rad1 {[%emt 0:00:36]} Nf5 {[%emt 0:01:55]} 20. d4 {[%emt 0:01:53]} Nxg3 {[%emt 0:05:33]} 21. hxg3 {[%emt 0:00:01]} g4 {[%emt 0:04:06]} 22. Nh4 {[%emt 0:07:10]} exd4 {[%emt 0:03:14]} 23. Rxd4 {[%emt 0:00:12]} Qc8 {[%emt 0:00:26]} 24. Qc2 {[%emt 0:04:59]} Kh8 {[%emt 0:03:29]} 25. Bd3 {[%emt 0:02:29]} c5 {[%emt 0:02:08]} 26. Rc4 {[%emt 0:06:35]} h5 {[%emt 0:03:53]} 27. Rxc5 {[%emt 0:00:28]} Qd8 {[%emt 0:00:21]} 28. Bg6 {[%emt 0:01:17]} Rc8 {[%emt 0:01:39]} 29. Bxf7 {[%emt 0:01:47]} Rxf7 {[%emt 0:00:01]} 30. Qg6 {[%emt 0:01:10]} Rh7 {[%emt 0:00:16]} 31. Rxc8 {[%emt 0:00:16]} Qxc8 {[%emt 0:00:01]} 32. Re8+ {[%emt 0:00:12]} Qxe8 {[%emt 0:00:06]} 33. Qxe8+ {[%emt 0:00:03]} 1-0

[Event "12th National Amateur Chess-ch 2025"]
[Site "Bihar"]
[Date "2025.03.26"]
[Round "3.8"]
[White "Vivaan Sachdev"]
[Black "Ayushman Mohanty"]
[Result "0-1"]
[Annotator "NA RC"]
[ECO "C47"]
[WhiteElo "1771"]
[BlackElo "1827"]
[PlyCount "60"]
[EventDate "2025.03.25"]
[EventCountry "IND"]
[SourceTitle "playchess.com"]
[Source "ChessBase"]
[SourceQuality "1"]
[TimeControl "5400+30"]

1. e4 {[%emt 0:00:30]} e5 {[%emt 0:00:12]} 2. Nf3 {[%emt 0:00:04]} Nc6 {[%emt 0:00:08]} 3. Nc3 {[%emt 0:00:03]} Nf6 {[%emt 0:00:07]} 4. a3 {[%emt 0:00:03]} Be7 {[%emt 0:10:14]} 5. d4 {[%emt 0:00:44]} exd4 {[%emt 0:03:08]} 6. Nxd4 {[%emt 0:00:36]} Nxd4 {[%emt 0:01:26]} 7. Qxd4 {[%emt 0:00:24]} d6 {[%emt 0:00:06]} 8. Bb5+ Bd7 {[%emt 0:08:28]} 9. Bxd7+ {[%emt 0:12:16]} Qxd7 {[%emt 0:00:13]} 10. O-O {[%emt 0:04:49]} O-O {[%emt 0:04:27]} 11. Bg5 {[%emt 0:07:35]} Rfe8 {[%emt 0:04:20]} 12. f3 {[%emt 0:03:51]} h6 {[%emt 0:02:15]} 13. Bh4 {[%emt 0:01:55]} a6 {[%emt 0:04:37]} 14. Rad1 {[%emt 0:04:12]} Rad8 {[%emt 0:05:33]} 15. Kh1 {[%emt 0:02:31]} Nh7 {[%emt 0:16:32]} 16. Bxe7 {[%emt 0:02:57]} Qxe7 {[%emt 0:00:33]} 17. Nd5 {[%emt 0:00:07]} Qd7 {[%emt 0:00:37]} 18. Qc3 {[%emt 0:00:57]} c6 {[%emt 0:03:17]} 19. Ne3 {[%emt 0:00:38]} Qe6 {[%emt 0:08:37]} 20. Nf5 {[%emt 0:07:17]} Nf6 {[%emt 0:00:50]} 21. Rd3 {[%emt 0:09:28]} d5 {[%emt 0:06:09]} 22. Rfd1 {[%emt 0:07:37]} Rd7 {[%emt 0:02:18]} 23. g4 {[%emt 0:01:09]} Kh7 {[%emt 0:09:04]} 24. exd5 {[%emt 0:07:07]} Rxd5 {[%emt 0:00:47]} 25. Rxd5 {[%emt 0:00:44]} cxd5 {[%emt 0:00:08]} 26. Qd3 {[%emt 0:02:48]} g6 {[%emt 0:00:28]} 27. Nd4 {[%emt 0:00:30]} Qe5 {[%emt 0:00:09]} 28. Rd2 {[%emt 0:03:55]} Qe1+ {[%emt 0:00:47]} 29. Kg2 {[%emt 0:00:01]} Re3 {[%emt 0:00:12]} 30. Rd1 {[%emt 0:02:31]} Rxd3 {[%emt 0:00:11]} 0-1

[Event "12th National Amateur Chess-ch 2025"]
[Site "Bihar"]
[Date "2025.03.26"]
[Round "3.9"]
[White "Pathak Anshu Kr"]
[Black "Akash Srivastav"]
[Result "1-0"]
[Annotator "NA RC"]
[ECO "B30"]
[WhiteElo "1585"]
[BlackElo "1689"]
[PlyCount "81"]
[EventDate "2025.03.25"]
[EventCountry "IND"]
[SourceTitle "playchess.com"]
[Source "ChessBase"]
[SourceQuality "1"]
[TimeControl "5400+30"]

1. e4 {[%emt 0:00:16]} c5 {[%emt 0:00:13]} 2. Nc3 {[%emt 0:00:06]} Nc6 {[%emt 0:00:28]} 3. Bb5 Nd4 {[%emt 0:03:44]} 4. Nf3 {[%emt 0:00:20]} Nxb5 {[%emt 0:00:45]} 5. Nxb5 {[%emt 0:00:04]} Nf6 6. e5 {[%emt 0:07:25]} Nd5 7. Qe2 {[%emt 0:01:38]} Nf4 {[%emt 0:24:08]} 8. Qe4 {[%emt 0:28:43]} Ne6 {[%emt 0:02:45]} 9. O-O {[%emt 0:01:56]} g6 {[%emt 0:03:55]} 10. d4 {[%emt 0:00:20]} a6 {[%emt 0:10:44]} 11. Nd6+ {[%emt 0:03:30]} exd6 {[%emt 0:00:32]} 12. d5 {[%emt 0:02:47]} Bg7 {[%emt 0:04:14]} 13. dxe6 {[%emt 0:10:32]} dxe6 {[%emt 0:05:58]} 14. Bg5 {[%emt 0:06:31]} Qc7 {[%emt 0:00:00]} 15. exd6 {[%emt 0:08:16]} Qc6 {[%emt 0:00:00]} 16. Qf4 {[%emt 0:12:29]} O-O {[%emt 0:00:00]} 17. Bf6 {[%emt 0:00:00]} Bxf6 {[%emt 0:00:00]} 18. Qxf6 {[%emt 0:00:00]} Qxd6 {[%emt 0:00:00]} 19. Rad1 {[%emt 0:00:00]} Qc7 {[%emt 0:00:00]} 20. Ne5 {[%emt 0:00:00]} b6 {[%emt 0:00:00]} 21. Rd3 {[%emt 0:00:05]} Ra7 {[%emt 0:02:24]} 22. Rfd1 {[%emt 0:04:11]} Qe7 {[%emt 0:01:13]} 23. Qf4 {[%emt 0:00:47]} f6 {[%emt 0:02:39]} 24. Nc6 {[%emt 0:01:02]} Qc7 {[%emt 0:00:31]} 25. Rd6 {[%emt 0:01:20]} Ra8 {[%emt 0:12:19]} 26. Qh4 {[%emt 0:00:50]} Kg7 {[%emt 0:07:46]} 27. Qg3 {[%emt 0:04:52]} e5 {[%emt 0:03:07]} 28. Nxe5 {[%emt 0:00:49]} Ra7 {[%emt 0:07:57]} 29. Nc6 {[%emt 0:00:24]} Rb7 {[%emt 0:00:27]} 30. Nd8 {[%emt 0:01:54]} Ra7 {[%emt 0:00:17]} 31. h4 {[%emt 0:01:03]} Bf5 {[%emt 0:01:12]} 32. R1d5 {[%emt 0:01:29]} Kh8 {[%emt 0:04:39]} 33. Rxf5 {[%emt 0:00:49]} Rxd8 {[%emt 0:01:40]} 34. Rfxf6 {[%emt 0:00:33]} Rxd6 {[%emt 0:01:28]} 35. Rxd6 {[%emt 0:00:05]} Ra8 {[%emt 0:01:09]} 36. Qe5+ {[%emt 0:01:18]} Qg7 {[%emt 0:00:08]} 37. Qd5 {[%emt 0:00:39]} Re8 {[%emt 0:00:32]} 38. Rd7 {[%emt 0:01:08]} Qf6 {[%emt 0:00:58]} 39. g3 {[%emt 0:00:21]} Re1+ {[%emt 0:01:11]} 40. Kg2 {[%emt 0:00:15]} Re2 {[%emt 0:00:12]} 41. Qa8+ {[%emt 0:00:07]} 1-0